bitfinex-derivatives/quotes_ETHF0:USTF0_20250621
["timestamp","ask_amount","ask_price","bid_price","bid_amount"]
[1750536968159,1.4013,2387.5,2386.7,3.2078]
[1750536968160,3.2078,2387.2,2386.7,3.2078]
[1750536968362,4.04547,2387.2,2386.8,2.19619]
[1750536968968,4.96181426,2386.9,2386.8,1.3584]
[1750536969260,8.16961426,2386.9,2386.5,0.08380473]
[1750536969459,9.00738426,2386.9,2386.6,1.3801]
[1750536970065,9.00738426,2386.9,2386.8,0.83779]
[1750536970066,3.2078,2386.9,2386.8,0.83779]
[1750536970467,3.2078,2387.2,2386.8,5.0]
[1750536970669,5.79958426,2386.9,2386.6,0.83784]
[1750536970869,9.00738426,2386.9,2386.7,1.3801]
[1750536971275,8.16961426,2386.9,2386.7,1.3801]
[1750536971568,10.2308,2387.2,2387.0,0.8377]
[1750536971774,10.2308,2387.2,2387.1,1.3801]
[1750536971975,11.06845,2387.2,2387.1,1.3801]
[1750536972170,8.16961426,2387.5,2387.1,1.3801]
[1750536972372,15.19261426,2387.5,2387.1,1.3801]
[1750536972575,8.16961426,2387.5,2387.1,1.3801]
[1750536972765,1.3531,2388.0,2387.1,1.3801]
[1750536972766,3.2078,2387.8,2387.1,1.3801]
[1750536972967,3.2078,2387.8,2387.6,0.83748]
[1750536973267,3.2078,2387.8,2387.2,3.2078]
[1750536973268,3.2078,2387.8,2387.7,2.20757]
[1750536973470,3.2078,2387.8,2387.7,1.3701]
[1750536973669,3.2078,2388.1,2387.7,1.3701]
[1750536973872,3.2078,2388.1,2388.0,0.83736]
[1750536974865,3.2078,2388.1,2387.9,0.83738]
[1750536975070,4.04516,2388.1,2387.8,0.83741]
[1750536975370,4.04516,2388.1,2387.9,1.3701]
[1750536975872,4.04513,2388.1,2387.9,2.2075]
[1750536976076,4.04513,2388.1,2387.9,1.3701]
[1750536976775,3.2078,2388.1,2387.5,3.9137]
[1750536976975,0.83739,2388.0,2387.7,0.83744]
[1750536977180,3.2078,2388.1,2387.8,0.83741]
[1750536977377,3.2078,2388.1,2387.9,2.20879]
[1750536977775,3.2078,2388.1,2388.0,0.83736]
[1750536977982,3.2078,2388.1,2388.0,2.20876]
[1750536978177,3.2078,2388.4,2388.3,0.83726]
[1750536979181,8.16961426,2388.4,2388.0,1.3714]
[1750536979377,8.16961426,2388.4,2388.3,0.83726]
[1750536980482,9.00685426,2388.4,2388.2,0.83727]
[1750536980883,9.00683426,2388.4,2388.3,0.83726]
[1750536981393,8.16961426,2388.4,2388.1,0.83733]
[1750536981594,0.83727,2388.3,2388.1,0.83733]
[1750536981779,0.83727,2388.3,2388.0,1.325]
[1750536981780,3.2078,2388.4,2388.3,0.83726]
[1750536983287,3.2078,2388.8,2388.1,9.09627]
[1750536983493,3.2078,2388.8,2388.2,6.62604]
[1750536983691,0.83712,2388.7,2388.2,1.325]
[1750536983992,4.04491,2388.8,2388.7,0.83712]
[1750536984190,0.83712,2388.7,2388.6,0.83713]
[1750536984393,3.2078,2388.8,2388.6,0.83715]
[1750536984595,0.83713,2388.7,2388.6,0.83715]
[1750536984791,3.2078,2388.8,2388.5,0.83717]
[1750536984987,0.83714,2388.7,2388.3,1.4167]
[1750536985294,0.83722,2388.4,2388.0,0.6663]
[1750536985479,0.83722,2388.4,2388.3,0.83726]
[1750536985683,4.04501,2388.5,2388.3,0.83726]
[1750536986088,3.2078,2388.5,2388.4,0.83722]
[1750536986283,3.2078,2388.5,2388.0,0.6663]
[1750536986488,0.83724,2388.4,2388.0,0.6663]
[1750536986786,0.83724,2388.4,2388.2,0.83729]
[1750536986992,0.83729,2388.2,2388.1,0.83731]
[1750536987188,0.83729,2388.2,2388.0,0.83734]
[1750536987592,3.2078,2388.2,2387.9,0.83737]
[1750536987791,4.04512,2388.2,2387.8,8.4187]
[1750536988189,3.2078,2388.2,2388.1,0.83733]
[1750536988499,0.83726,2388.3,2388.2,0.83729]
[1750536988688,3.2078,2388.3,2388.0,0.83734]
[1750536988884,0.83731,2388.2,2388.1,0.83732]
[1750536989191,3.2078,2388.3,2388.2,0.83729]
[1750536989398,3.2078,2388.6,2388.4,0.83722]
[1750536989589,1.15258023,2388.5,2388.3,0.83724]
[1750536989790,3.2078,2388.6,2388.3,0.83724]
[1750536989991,0.83723,2388.4,2388.0,1.4229]
[1750536990298,0.83723,2388.4,2388.3,0.83724]
[1750536990901,0.83721,2388.5,2388.4,0.83722]
[1750536991095,1.15302535,2388.5,2388.4,0.83722]
[1750536991400,1.15302535,2388.5,2388.1,2.09328]
[1750536991401,0.83723,2388.4,2388.3,0.83724]
[1750536991600,1.15054108,2388.4,2388.3,0.83724]
[1750536992698,52.39061805,2389.4,2389.3,0.83691]
[1750536992699,5.69517083,2389.4,2389.3,0.83691]
[1750536992898,4.04469,2389.4,2389.3,0.83691]
[1750536993092,4.04469,2389.4,2389.2,0.83693]
[1750536993288,4.04469,2389.4,2389.2,0.83692]
[1750536993487,0.83691,2389.3,2389.2,0.83692]
[1750536993690,3.2078,2389.4,2389.3,0.83691]
[1750536993895,3.2078,2389.4,2389.0,1.4019]
[1750536994098,3.2078,2389.4,2389.3,0.83691]
[1750536995197,3.2078,2389.8,2389.3,12.83891]
[1750536995392,3.2078,2389.8,2389.7,0.83677]
[1750536996203,5.79844426,2390.1,2390.0,0.83666]
[1750536996698,12.05346426,2390.1,2389.3,7.6456]
[1750536996901,0.83683,2389.6,2389.4,0.83685]
[1750536997095,5.79860426,2389.7,2389.5,0.83682]
[1750536997295,5.79860426,2389.7,2389.5,0.83681]
[1750536997504,0.83681,2389.6,2389.2,1.3253]
[1750536997700,5.79860426,2389.7,2389.2,11.5351]
[1750536998007,5.79860426,2389.7,2389.2,3.2078]
[1750536998303,4.96181426,2389.4,2389.3,0.8369]
[1750536998706,4.96181426,2389.4,2389.0,1.3253]
[1750536998907,5.79870426,2389.4,2389.3,0.83691]
[1750536999103,4.96181426,2389.4,2389.3,0.83691]
[1750536999305,0.647,2389.6,2389.5,0.83684]
[1750537000009,4.96181426,2389.7,2389.6,0.8368]
[1750537001099,11.96281426,2390.0,2389.8,0.83673]
[1750537001303,0.83671,2389.9,2389.5,3.2078]
[1750537001506,0.83671,2389.9,2389.5,4.5958]
[1750537001704,14.73487083,2390.2,2390.1,0.83663]
[1750537001705,3.9081,2390.2,2390.1,0.83663]
[1750537002006,3.2078,2390.2,2390.1,0.83663]
[1750537002214,0.83649,2390.5,2389.9,5.29956]
[1750537002407,0.83643,2390.7,2390.5,0.83647]
[1750537002708,4.96181426,2391.0,2390.2,3.2078]
[1750537002709,0.83641,2390.8,2390.6,0.83645]
[1750537002901,7.13754426,2391.0,2390.8,0.83636]
[1750537003208,0.83635,2390.9,2390.7,0.83641]
[1750537003711,0.83639,2390.8,2390.6,0.83643]
[1750537004311,0.83648,2390.6,2390.5,6.99]
[1750537004515,5.79825426,2390.7,2390.5,6.99]
[1750537004911,0.83645,2390.6,2390.5,6.99]
[1750537005414,0.83644,2390.7,2390.5,6.99]
[1750537006114,0.83645,2390.6,2390.5,6.99]
[1750537006911,3.2078,2390.8,2390.2,4.04437]
[1750537007109,1.4024,2390.7,2390.3,6.989]
[1750537007305,0.83643,2390.7,2390.3,6.989]
[1750537007507,4.04421,2390.8,2390.3,8.3127]
[1750537007707,3.2078,2390.8,2390.3,8.3127]
[1750537007907,4.75269,2391.1,2390.5,3.2078]
[1750537008217,4.75269,2391.1,2390.9,0.83635]
[1750537008406,0.83632,2391.0,2390.8,0.83636]
[1750537008612,3.9164,2391.1,2390.7,6.989]
[1750537008915,0.83637,2390.9,2390.7,7.82542]
[1750537009214,0.83633,2391.0,2390.8,0.83637]
[1750537009513,0.83633,2391.0,2390.8,0.83635]
[1750537009707,0.83633,2391.0,2390.9,0.83635]
[1750537009909,0.83631,2391.0,2390.9,0.83635]
[1750537010517,0.83635,2391.0,2390.8,2.21748]
[1750537011107,5.69808542,2390.9,2390.1,3.2078]
[1750537011404,5.69808542,2390.9,2390.4,0.83651]
[1750537011719,0.83649,2390.5,2390.3,0.83653]
[1750537011922,0.83652,2390.4,2390.3,6.988]
[1750537012117,0.83664,2390.1,2389.9,7.82467]
[1750537012309,0.83664,2390.1,2390.0,0.83666]
[1750537012613,0.83664,2390.1,2389.9,7.82469]
[1750537013334,8.90588542,2390.5,2390.1,0.83663]
[1750537013516,0.83663,2390.1,2390.0,2.25394]
[1750537013814,0.83662,2390.2,2390.1,0.83663]
[1750537014011,0.83662,2390.2,2390.0,2.25393]
[1750537014409,0.83659,2390.3,2390.1,0.83663]
[1750537014716,0.83659,2390.2,2390.1,0.83663]
[1750537014929,0.83663,2390.1,2390.0,1.4173]
[1750537015214,10.99715542,2390.5,2389.8,7.82471]
[1750537015215,0.83669,2390.0,2389.8,7.82471]
[1750537015425,0.8367,2389.9,2389.8,6.988]
[1750537015619,3.39181,2390.3,2389.8,7.82473]
[1750537015825,0.83669,2390.0,2389.8,7.82473]
[1750537016118,0.8367,2389.9,2389.8,6.988]
[1750537016313,0.8367,2389.9,2389.8,9.24283]
[1750537016514,0.83669,2390.0,2389.8,9.24283]
[1750537016718,0.8367,2389.9,2389.8,8.4061]
[1750537017020,0.83676,2389.8,2389.6,8.4939]
[1750537017318,3.2078,2389.8,2389.2,3.2078]
[1750537017514,0.83689,2389.4,2389.2,11.03273]
[1750537017817,0.83691,2389.3,2389.2,11.03273]
[1750537018017,2.09193,2389.7,2389.2,11.03273]
[1750537018018,7.79001542,2389.7,2389.2,10.1958]
[1750537018225,9.08221542,2389.7,2389.2,11.03274]
[1750537018417,0.8369,2389.4,2389.2,7.82494]
[1750537018618,0.83691,2389.3,2389.2,7.82494]
[1750537018818,0.83691,2389.3,2389.2,6.988]
[1750537019421,0.83698,2389.1,2389.0,1.4107]
[1750537019616,0.83682,2389.6,2389.4,0.83687]
[1750537019820,3.2078,2390.1,2389.5,6.988]
[1750537020019,3.2078,2390.1,2389.3,5.30004]
[1750537020020,9.07928,2390.5,2389.7,3.2078]
[1750537020211,3.2078,2390.3,2389.8,8.3987]
[1750537020522,0.83664,2390.1,2389.9,0.83668]
[1750537020722,0.83664,2390.1,2389.9,2.24738]
[1750537021224,3.2078,2390.3,2389.9,1.4107]
[1750537021427,0.83666,2390.0,2389.9,1.4107]
[1750537022114,0.83666,2390.1,2389.9,2.2474]
[1750537022610,3.2078,2390.3,2389.7,3.2078]
[1750537022809,3.2078,2390.3,2389.0,2.09247]
[1750537022810,0.83677,2389.7,2389.5,6.988]
[1750537023015,0.8368,2389.7,2389.5,7.82484]
[1750537023220,0.8368,2389.6,2389.5,7.82484]
[1750537023920,0.83675,2389.8,2389.6,0.83679]
[1750537024222,3.2078,2390.0,2389.5,7.82482]
[1750537024423,0.83679,2389.7,2389.5,7.82482]
[1750537024828,0.83681,2389.6,2389.5,7.82482]
[1750537025621,3.2078,2390.0,2389.5,6.988]
[1750537025928,0.83673,2389.9,2389.7,0.83675]
[1750537026427,0.83677,2389.7,2389.6,1.375]
[1750537026622,5.29951,2390.0,2389.5,7.82483]
[1750537026822,1.98210533,2389.9,2389.5,6.988]
[1750537027021,3.2078,2390.0,2389.6,2.21179]
[1750537027216,0.83676,2389.8,2389.6,2.21179]
[1750537027432,0.83672,2389.9,2389.7,0.83677]
[1750537027626,0.83677,2389.7,2389.6,1.375]
[1750537027831,5.2995,2390.0,2389.5,7.82483]
[1750537028132,0.83684,2389.5,2389.4,6.989]
[1750537028925,0.83684,2389.5,2389.4,7.82587]
[1750537029123,2.75879,2389.9,2389.4,7.82587]
[1750537029325,0.83683,2389.6,2389.4,7.82587]
[1750537029526,0.83679,2389.7,2389.5,0.83684]
[1750537029725,0.83682,2389.6,2389.4,7.82585]
[1750537030024,0.83682,2389.6,2389.4,9.16415]
[1750537030224,0.83684,2389.5,2389.4,8.3273]
[1750537030632,0.83684,2389.5,2389.4,6.989]
[1750537030825,0.83691,2389.3,2389.2,7.82593]
[1750537031129,0.83691,2389.3,2389.2,6.989]
[1750537031130,0.83693,2389.3,2389.2,6.989]
[1750537031530,0.83716,2388.6,2388.4,6.989]
[1750537031729,0.83701,2389.1,2388.5,2.09298]
[1750537031934,3.2078,2389.3,2389.2,0.83694]
[1750537032136,0.83687,2389.5,2389.3,0.8369]
[1750537032324,0.83691,2389.3,2389.2,3.2078]
[1750537032632,0.83691,2389.3,2389.1,0.83697]
[1750537033031,3.2078,2389.4,2389.0,1.5293]
[1750537033224,0.83697,2389.2,2389.0,1.5293]
[1750537033734,3.2078,2389.4,2389.0,0.6923]
[1750537034032,4.0447,2389.4,2389.2,0.83693]
[1750537034232,0.83691,2389.3,2389.2,0.83693]
[1750537034625,4.04469,2389.4,2389.0,0.6923]
[1750537034831,4.04469,2389.4,2389.2,0.83691]
[1750537035530,3.2078,2389.7,2389.2,10.1908]
[1750537035844,3.2078,2389.7,2389.6,0.8368]
[1750537036431,4.04457,2389.7,2389.5,0.83683]
[1750537036730,4.04457,2389.7,2389.6,0.8368]
[1750537036731,3.2078,2389.7,2389.6,0.8368]
[1750537037132,4.04457,2389.7,2389.5,0.83682]
[1750537037630,4.04457,2389.7,2389.6,0.8368]
[1750537038033,0.8368,2389.6,2389.5,0.83681]
[1750537038334,4.0446,2389.7,2389.5,0.83681]
[1750537038934,0.8368,2389.6,2389.5,0.83681]
[1750537039334,4.04459,2389.7,2389.5,0.83681]
[1750537039524,3.2078,2389.7,2389.6,0.8368]
[1750537040335,4.04457,2389.7,2389.6,0.8368]
[1750537040541,0.83681,2389.6,2389.5,0.83682]
[1750537040833,4.0446,2389.7,2389.6,0.8368]
[1750537041033,5.1929022,2389.7,2389.6,0.8368]
[1750537041435,5.19354133,2389.7,2389.6,0.8368]
[1750537042033,0.83681,2389.6,2389.5,0.83681]
[1750537042233,4.04459,2389.7,2389.6,0.8368]
[1750537042437,5.1936051,2389.7,2389.6,0.8368]
[1750537042833,0.8368,2389.6,2389.5,0.83681]
[1750537043230,0.83684,2389.5,2389.4,0.6691]
[1750537043433,3.2078,2389.7,2389.3,6.983]
[1750537043636,0.83681,2389.6,2389.5,0.83681]
[1750537044730,0.6666,2390.0,2389.4,4.18432]
[1750537044935,1.98642432,2389.9,2389.8,0.83672]
[1750537045338,1.14969432,2389.9,2389.8,4.04452]
[1750537045634,0.83664,2390.1,2390.0,0.83663]
[1750537045834,1.98662019,2390.1,2389.9,0.83668]
[1750537046140,1.98665019,2390.0,2389.9,0.8367]
[1750537046542,1.14998019,2390.0,2389.9,0.8367]
[1750537048349,4.96835934,2390.1,2390.0,0.83666]
[1750537048546,6.1183662,2390.1,2390.0,0.83666]
[1750537049044,3.2078,2390.4,2390.3,0.83656]
[1750537049235,1.14993997,2390.4,2390.3,4.04436]
[1750537049547,0.83636,2390.9,2390.8,0.83638]
[1750537049842,4.04407,2391.2,2391.0,0.83631]
[1750537050141,0.8364,2390.8,2390.4,3.2078]
[1750537050334,4.96835934,2390.7,2390.1,10.8368]
[1750537050537,5.80490934,2390.4,2390.2,0.83659]
[1750537050946,4.96835934,2390.4,2390.3,0.83656]
[1750537051149,2.6273,2390.7,2390.1,3.8538]
[1750537051348,1.98475657,2390.6,2390.4,0.8365]
[1750537051648,1.3196,2390.7,2390.2,1.3822]
[1750537052148,2.15605,2390.7,2390.5,0.83649]
[1750537052549,0.83651,2390.5,2390.2,1.3822]
[1750537052850,0.83647,2390.6,2390.4,0.8365]
[1750537053050,0.83649,2390.5,2390.3,0.83653]
[1750537053344,0.83653,2390.4,2390.2,2.21877]
[1750537053649,0.83652,2390.5,2390.3,0.83656]
[1750537054747,0.83652,2390.4,2390.3,0.83656]
[1750537054948,0.83658,2390.3,2390.1,8.46463]
[1750537055146,0.83654,2390.4,2390.2,0.83658]
[1750537055546,4.96835934,2390.5,2390.2,3.2078]
[1750537055849,0.83656,2390.3,2390.1,8.46461]
[1750537056046,4.96835934,2390.5,2390.1,7.628]
[1750537056249,0.83658,2390.3,2390.1,8.46461]
[1750537056546,6.26995934,2390.5,2390.0,0.83665]
[1750537056849,0.83665,2390.1,2389.9,0.83668]
[1750537057052,4.96835934,2390.1,2389.6,3.2078]
[1750537057349,0.83677,2389.7,2389.6,10.1898]
[1750537057944,0.83677,2389.7,2389.6,11.02661]
[1750537058144,0.83673,2389.9,2389.7,0.83675]
[1750537058361,0.83674,2389.8,2389.7,0.83675]
[1750537058544,0.83674,2389.8,2389.7,0.83677]
[1750537058748,0.83674,2389.8,2389.7,1.3148]
[1750537058950,0.7092,2390.0,2389.6,11.02658]
[1750537059139,0.7092,2390.0,2389.6,10.1898]
[1750537059343,0.7092,2390.0,2389.8,0.83672]
[1750537059344,0.8367,2389.9,2389.8,0.83672]
[1750537059544,0.7092,2390.0,2389.7,1.3148]
[1750537059745,0.83674,2389.8,2389.7,2.15156]
[1750537060850,0.83674,2389.8,2389.7,1.3148]
[1750537061053,0.83681,2389.6,2389.5,6.982]
[1750537061454,0.83685,2389.5,2389.4,0.83688]
[1750537062257,0.83676,2389.8,2389.3,8.3386]
[1750537062555,3.2078,2389.9,2389.5,0.83683]
[1750537062754,3.2078,2389.9,2389.3,8.3386]
[1750537062954,0.83675,2389.8,2389.3,10.43086]
[1750537063156,0.83675,2389.8,2389.7,0.83677]
[1750537063356,4.04452,2389.9,2389.8,0.83674]
[1750537063649,3.9008,2390.2,2389.7,3.2078]
[1750537063848,3.2078,2390.2,2389.8,1.3642]
[1750537064051,4.0444,2390.2,2390.1,0.83663]
[1750537064248,1.98194194,2390.2,2390.1,0.83663]
[1750537064958,1.98194194,2390.2,2390.0,0.83665]
[1750537065254,0.83667,2390.0,2389.9,0.83669]
[1750537065754,0.83666,2390.1,2390.0,0.83667]
[1750537067163,0.83666,2390.1,2389.9,0.83668]
[1750537067451,0.83664,2390.1,2389.8,9.6861]
[1750537067655,0.83664,2390.1,2390.0,0.83666]
[1750537068155,0.83664,2390.1,2389.9,0.83668]
[1750537068665,0.83664,2390.1,2390.0,0.83667]
[1750537069148,1.98451807,2390.1,2390.0,0.83667]
[1750537069350,1.98451807,2390.1,2389.9,0.83668]
[1750537069552,0.83664,2390.1,2389.9,0.83668]
[1750537069751,4.96835934,2390.3,2389.8,9.6861]
[1750537069752,0.83669,2390.0,2389.8,10.52282]
[1750537069957,0.83665,2390.1,2389.8,9.6861]
[1750537070257,0.83665,2390.1,2389.8,10.52282]
[1750537070455,3.2078,2390.2,2389.8,9.6861]
[1750537070655,0.83668,2390.0,2389.8,9.6861]
[1750537070956,0.83668,2390.0,2389.8,10.52283]
[1750537071461,3.2078,2390.2,2389.8,9.6861]
[1750537071653,1.14780829,2390.1,2390.0,0.83665]
[1750537071856,1.98443829,2390.1,2389.9,0.83668]
[1750537072152,0.83663,2390.1,2390.0,1.3053]
[1750537072352,0.8367,2389.9,2389.8,8.3219]
[1750537073157,3.2078,2390.2,2389.8,9.7253]
[1750537073456,0.8367,2389.9,2389.8,9.7253]
[1750537073656,0.8367,2389.9,2389.8,10.56204]
[1750537073857,3.2078,2390.2,2389.8,10.56204]
[1750537074059,1.1478936,2390.1,2389.8,10.56204]
[1750537074251,3.2078,2390.2,2389.8,10.56204]
[1750537074454,1.1478967,2390.1,2389.8,10.56204]
[1750537074658,0.83669,2390.0,2389.8,10.56204]
[1750537074859,0.8367,2389.9,2389.8,10.56204]
[1750537075263,0.8367,2389.9,2389.8,9.7253]
[1750537075556,0.8367,2389.9,2389.8,6.976]
[1750537076954,0.83677,2389.7,2389.5,0.83682]
[1750537077253,0.83677,2389.7,2389.6,9.14191]
[1750537077655,0.83676,2389.8,2389.7,0.83677]
[1750537077856,0.83677,2389.7,2389.6,9.14188]
[1750537079059,0.83677,2389.7,2389.6,2.16588]
[1750537079362,0.83677,2389.7,2389.6,8.3051]
[1750537080365,3.24079287,2389.7,2389.2,6.976]
[1750537080554,0.83695,2389.2,2389.1,0.6713]
[1750537080755,0.8371,2388.8,2388.7,0.83712]
[1750537080959,0.83712,2388.8,2388.6,11.69224]
[1750537081159,0.83712,2388.8,2388.7,1.3482]
[1750537081468,0.83712,2388.8,2388.6,3.8791]
[1750537081469,0.83712,2388.7,2388.6,0.6713]
[1750537081672,0.83723,2388.4,2388.3,3.9033]
[1750537082364,0.83723,2388.4,2388.3,3.2078]
[1750537084070,0.83728,2388.3,2388.1,9.16252]
[1750537084469,0.83728,2388.3,2388.1,8.3252]
[1750537084671,4.96835934,2388.5,2388.1,8.3252]
[1750537084872,0.83724,2388.4,2388.1,8.3252]
[1750537085067,0.83724,2388.4,2388.1,9.16252]
[1750537085466,0.8373,2388.2,2388.1,1.3482]
[1750537085674,0.83732,2388.2,2388.0,7.6735]
[1750537085968,0.83732,2388.2,2388.0,9.0244]
[1750537086171,3.2078,2388.3,2388.0,2.0464]
[1750537086368,4.04508,2388.3,2388.0,2.0464]
[1750537086571,3.2078,2388.3,2388.1,0.83733]
[1750537086765,4.04507,2388.3,2388.1,2.18823]
[1750537086965,0.83727,2388.3,2388.1,2.18823]
[1750537087166,0.8373,2388.2,2388.1,1.3509]
[1750537087368,0.83733,2388.1,2388.0,0.6955]
[1750537087572,0.83737,2388.0,2387.9,7.6493]
[1750537088781,0.83737,2388.0,2387.9,0.6713]
[1750537088983,0.83739,2388.0,2387.8,7.81643]
[1750537089281,0.83739,2388.0,2387.7,1.3509]
[1750537089282,3.8892,2388.6,2387.9,12.28031]
[1750537089480,0.83726,2388.3,2388.2,0.83729]
[1750537089784,0.83733,2388.1,2388.0,1.3878]
[1750537089987,0.83733,2388.1,2387.9,10.1868]
[1750537089988,8.17615934,2388.3,2387.7,0.83746]
[1750537090187,0.83746,2387.8,2387.7,6.979]
[1750537090377,1.3033,2388.2,2387.7,6.979]
[1750537090578,1.3033,2388.2,2387.8,2.22523]
[1750537090778,0.8374,2387.9,2387.8,2.22524]
[1750537090975,3.2078,2388.3,2387.8,1.3878]
[1750537091179,0.6701,2388.4,2387.9,0.83739]
[1750537091485,0.83736,2388.1,2387.9,0.83739]
[1750537091787,0.83738,2388.0,2387.8,2.22522]
[1750537091988,0.8374,2387.9,2387.8,1.3878]
[1750537092786,4.96835934,2388.2,2387.8,0.83743]
[1750537093086,4.96835934,2388.2,2387.7,7.81645]
[1750537093087,0.8374,2387.9,2387.7,7.81645]
[1750537093287,0.83744,2387.8,2387.6,3.55189]
[1750537093488,0.83742,2387.9,2387.7,0.83745]
[1750537093789,0.83742,2387.9,2387.8,0.83744]
[1750537093990,4.96835934,2388.2,2387.8,0.83744]
[1750537094288,0.83743,2387.9,2387.7,0.83745]
[1750537094490,0.83743,2387.9,2387.8,0.83744]
[1750537094888,4.96835934,2388.2,2387.6,9.6934]
[1750537095186,0.83741,2387.9,2387.7,0.83745]
[1750537095381,0.83744,2387.8,2387.7,0.83745]
[1750537095687,0.83743,2387.9,2387.8,0.83743]
[1750537096082,0.83738,2388.0,2387.9,0.83739]
[1750537096284,4.96835934,2388.2,2387.6,9.6934]
[1750537096490,0.83741,2387.9,2387.8,0.83742]
[1750537097286,2.09338,2388.1,2387.6,2.7144]
[1750537097486,0.83747,2387.7,2387.6,9.6834]
[1750537097790,7.06191934,2387.9,2387.4,0.83756]
[1750537097986,0.83751,2387.6,2387.5,6.969]
[1750537098188,0.83751,2387.6,2387.5,7.80654]
[1750537098388,0.83749,2387.7,2387.6,0.8375]
[1750537100187,4.96835934,2387.9,2387.5,7.80652]
[1750537100396,0.83751,2387.6,2387.5,7.80652]
[1750537100584,7.06189934,2387.9,2387.4,6.97]
[1750537100784,4.96835934,2387.9,2387.6,0.83749]
[1750537101092,0.83751,2387.6,2387.5,0.83752]
[1750537101393,0.83749,2387.7,2387.6,0.8375]
[1750537101594,0.83751,2387.6,2387.5,2.14132]
[1750537101890,4.96835934,2387.9,2387.3,7.6422]
[1750537101891,0.83758,2387.4,2387.3,7.6422]
[1750537102391,0.83772,2387.0,2386.9,1.3038]
[1750537102789,0.83775,2386.9,2386.8,6.97]
[1750537103689,0.83779,2386.8,2386.7,0.6702]
[1750537104093,0.83782,2386.7,2386.6,2.0078]
[1750537104590,0.83788,2386.6,2386.3,0.6542]
[1750537104886,0.83789,2386.5,2386.4,0.8379]
[1750537105082,0.83793,2386.4,2386.3,1.9704]
[1750537105278,0.83792,2386.5,2386.3,1.9704]
[1750537105485,0.83792,2386.5,2386.3,2.80836]
[1750537106083,3.2078,2386.8,2386.2,10.1798]
[1750537106295,12.8862,2387.1,2386.6,3.2078]
[1750537106494,3.2078,2387.4,2386.7,1.3778]
[1750537106696,3.2078,2387.4,2386.9,0.83772]
[1750537106697,0.83767,2387.2,2386.9,0.83772]
[1750537106989,3.2078,2387.4,2386.9,0.83772]
[1750537106990,0.83768,2387.1,2387.0,1.3778]
[1750537109692,2.09428,2387.1,2386.7,0.691]
[1750537109897,0.83779,2386.8,2386.7,0.691]
[1750537110590,0.83786,2386.6,2386.5,8.2569]
[1750537110984,3.8804,2387.1,2386.6,0.83785]
[1750537110985,0.83781,2386.8,2386.6,0.83785]
[1750537111188,0.83778,2386.9,2386.7,0.83782]
[1750537111388,2.0453,2387.1,2386.6,0.83785]
[1750537111594,7.06274934,2386.9,2386.3,3.862]
[1750537111897,0.83793,2386.4,2386.3,3.862]
[1750537112095,0.83788,2386.6,2386.4,0.83791]
[1750537112293,0.83788,2386.6,2386.4,2.12281]
[1750537112698,3.8804,2387.1,2386.4,1.2849]
[1750537112996,1.14355195,2387.0,2386.9,0.83775]
[1750537113299,0.83772,2387.0,2386.9,0.83775]
[1750537113796,10.66353017,2387.9,2387.0,2.0943]
[1750537113998,0.83761,2387.3,2387.2,4.04544]
[1750537114195,0.83761,2387.3,2387.2,7.6847]
[1750537114394,4.96835934,2387.6,2387.0,1.5232]
[1750537114598,1.14394792,2387.5,2387.0,2.0563]
[1750537114901,0.83761,2387.3,2387.1,0.83766]
[1750537115203,0.83761,2387.3,2387.2,1.3708]
[1750537115591,7.06216934,2387.6,2387.0,2.2349]
[1750537115592,0.83768,2387.1,2387.0,1.3972]
[1750537115798,10.26996934,2387.6,2387.0,2.8138]
[1750537115996,0.83767,2387.2,2387.0,3.6515]
[1750537116399,0.83768,2387.1,2387.0,2.8138]
[1750537116599,8.17615934,2387.3,2386.8,10.1808]
[1750537116801,0.83772,2387.0,2386.9,1.4166]
[1750537118004,0.83772,2387.0,2386.8,6.973]
[1750537118205,8.17615934,2387.0,2386.6,1.4166]
[1750537118503,1.14436665,2386.9,2386.6,2.25445]
[1750537118703,0.83782,2386.7,2386.6,1.4166]
[1750537119203,0.83781,2386.8,2386.6,2.25444]
[1750537119409,8.17615934,2387.0,2386.6,1.4166]
[1750537119410,0.83782,2386.7,2386.6,1.4166]
[1750537119599,0.83782,2386.7,2386.6,2.25446]
[1750537119801,0.83776,2386.9,2386.6,1.4166]
[1750537120192,3.2078,2387.3,2386.7,3.2078]
[1750537120499,0.83772,2387.0,2386.9,0.83773]
[1750537120700,1.98207098,2387.0,2386.9,1.2957]
[1750537121003,1.14435098,2387.0,2386.5,1.3504]
[1750537121303,0.83779,2386.8,2386.6,8.2687]
[1750537121503,0.83777,2386.9,2386.7,0.8378]
[1750537122505,0.83777,2386.9,2386.8,1.4149]
[1750537122707,0.83777,2386.9,2386.8,2.25269]
[1750537123000,1.98230799,2386.9,2386.8,2.25269]
[1750537123396,1.98230799,2386.9,2386.8,1.4149]
[1750537123599,1.14453799,2386.9,2386.8,2.25269]
[1750537124008,0.83767,2387.2,2387.0,0.8377]
[1750537124302,1.14476666,2387.1,2387.0,0.8377]
[1750537124607,1.14476666,2387.1,2387.0,2.2526]
[1750537125005,10.66353017,2387.7,2387.0,8.3879]
[1750537125201,0.83757,2387.5,2387.3,0.83758]
[1750537125401,0.83757,2387.5,2387.4,2.17658]
[1750537125600,0.83757,2387.5,2387.4,1.339]
[1750537125801,1.98348081,2387.5,2387.4,2.17656]
[1750537126001,1.14594081,2387.5,2387.4,1.339]
[1750537126302,1.98348081,2387.5,2387.4,1.339]
[1750537126904,0.83761,2387.3,2387.2,3.2078]